[Event "Live Chess"]
[Site "Chess.com"]
[Date "2023.05.21"]
[Round "-"]
[White "luckywookie"]
[Black "SupremeTactician"]
[Result "0-1"]
[WhiteElo "797"]
[BlackElo "2248"]
[TimeControl "300"]
[EndTime "5:43:12 PDT"]
[Termination "SupremeTactician won by checkmate"]

1. e4 {[%clk 0:04:56.8]} 1... e5 {[%clk 0:04:58.6]} 2. Nf3 {[%clk 0:04:51.3]}
2... Nc6 {[%clk 0:04:58.1]} 3. Bb5 {[%clk 0:04:37.4]} 3... a6 {[%clk 0:04:51.2]}
4. Bxc6 {[%clk 0:04:36.4]} 4... dxc6 {[%clk 0:04:48.5]} 5. c3 {[%clk 0:04:35.6]}
5... Bd6 {[%clk 0:04:44.3]} 6. d4 {[%clk 0:04:33.6]} 6... exd4 {[%clk
0:04:44.2]} 7. cxd4 {[%clk 0:04:32.2]} 7... Bg4 {[%clk 0:04:43.7]} 8. Be3 {[%clk
0:04:25.4]} 8... Ne7 {[%clk 0:04:38.9]} 9. Nc3 {[%clk 0:04:23.7]} 9... Ng6
{[%clk 0:04:36.9]} 10. h3 {[%clk 0:04:12.5]} 10... Bxf3 {[%clk 0:04:34.1]} 11.
Qxf3 {[%clk 0:04:08.5]} 11... O-O {[%clk 0:04:31.4]} 12. e5 {[%clk 0:04:00.9]}
12... Bb4 {[%clk 0:04:27.8]} 13. O-O-O {[%clk 0:03:55.4]} 13... Bxc3 {[%clk
0:04:22.4]} 14. bxc3 {[%clk 0:03:53.8]} 14... Qe7 {[%clk 0:04:22]} 15. h4 {[%clk
0:03:49.8]} 15... Qa3+ {[%clk 0:04:15.8]} 16. Kd2 {[%clk 0:03:44.3]} 16... Qb2+
{[%clk 0:04:01.6]} 17. Ke1 {[%clk 0:03:42.9]} 17... Qxc3+ {[%clk 0:04:00.1]} 18.
Kf1 {[%clk 0:03:32.5]} 18... Qc4+ {[%clk 0:03:54.8]} 19. Kg1 {[%clk 0:03:27.1]}
19... Qd5 {[%clk 0:03:48.6]} 20. h5 {[%clk 0:03:17]} 20... Qxf3 {[%clk
0:03:46.6]} 21. gxf3 {[%clk 0:03:16]} 21... Ne7 {[%clk 0:03:46.2]} 22. h6 {[%clk
0:03:09.3]} 22... g6 {[%clk 0:03:42.9]} 23. Bg5 {[%clk 0:03:00.4]} 23... Nd5
{[%clk 0:03:38.9]} 24. Bf6 {[%clk 0:02:49.8]} 24... Nxf6 {[%clk 0:03:29.7]} 25.
exf6 {[%clk 0:02:47.5]} 25... Rad8 {[%clk 0:03:29.6]} 26. Kg2 {[%clk 0:02:44.6]}
26... Rd6 {[%clk 0:03:18.7]} 27. Rhe1 {[%clk 0:02:39.7]} 27... Rxf6 {[%clk
0:03:16.4]} 28. Re7 {[%clk 0:02:35.7]} 28... Rc8 {[%clk 0:03:14.3]} 29. Rde1
{[%clk 0:02:33]} 29... Kf8 {[%clk 0:03:11.4]} 30. Kg3 {[%clk 0:02:26.1]} 30...
Rd6 {[%clk 0:03:06.1]} 31. R1e4 {[%clk 0:02:22.8]} 31... Rxd4 {[%clk 0:02:58.1]}
32. Rxd4 {[%clk 0:01:53.3]} 32... Kxe7 {[%clk 0:02:53.6]} 33. Re4+ {[%clk
0:01:51.5]} 33... Kf8 {[%clk 0:02:49.1]} 34. f4 {[%clk 0:01:50]} 34... Rd8
{[%clk 0:02:44.2]} 35. Kg4 {[%clk 0:01:49]} 35... f5+ {[%clk 0:02:41.5]} 36. Kg5
{[%clk 0:01:44.1]} 36... fxe4 {[%clk 0:02:41.4]} 37. Kf6 {[%clk 0:01:43.1]}
37... Rd6+ {[%clk 0:02:39]} 38. Ke5 {[%clk 0:01:37.8]} 38... Ke7 {[%clk
0:02:37]} 39. Kxe4 {[%clk 0:01:36.7]} 39... Re6+ {[%clk 0:02:35.3]} 40. Kf3
{[%clk 0:01:34.4]} 40... Kf6 {[%clk 0:02:32.9]} 41. Kg4 {[%clk 0:01:33.1]} 41...
Re4 {[%clk 0:02:30.5]} 42. f3 {[%clk 0:01:31.9]} 42... Ra4 {[%clk 0:02:30.4]}
43. Kg3 {[%clk 0:01:27.2]} 43... Kf5 {[%clk 0:02:30.3]} 44. Kh4 {[%clk
0:01:25.3]} 44... Rxf4+ {[%clk 0:02:30.2]} 45. Kh3 {[%clk 0:01:23.7]} 45... Ra4
{[%clk 0:02:29.8]} 46. Kg3 {[%clk 0:01:22.6]} 46... Rxa2 {[%clk 0:02:28.4]} 47.
Kh4 {[%clk 0:01:21.1]} 47... Rg2 {[%clk 0:02:25.3]} 48. Kh3 {[%clk 0:01:19.9]}
48... Rg1 {[%clk 0:02:23.9]} 49. Kh2 {[%clk 0:01:18.9]} 49... Rg5 {[%clk
0:02:22.4]} 50. Kh3 {[%clk 0:01:16.8]} 50... Kf4 {[%clk 0:02:22.3]} 51. Kh4
{[%clk 0:01:14]} 51... a5 {[%clk 0:02:22.2]} 52. Kh3 {[%clk 0:01:11.5]} 52... a4
{[%clk 0:02:22.1]} 53. Kh4 {[%clk 0:01:10.4]} 53... a3 {[%clk 0:02:22]} 54. Kh3
{[%clk 0:01:09.6]} 54... a2 {[%clk 0:02:21.9]} 55. Kh4 {[%clk 0:01:08.7]} 55...
a1=Q {[%clk 0:02:20.9]} 56. Kh3 {[%clk 0:01:07.7]} 56... Qh1# {[%clk 0:02:20.3]}
0-1

[Event "Live Chess"]
[Site "Chess.com"]
[Date "2023.05.21"]
[Round "-"]
[White "chessfiction"]
[Black "diana21strabt"]
[Result "1-0"]
[WhiteElo "2303"]
[BlackElo "1752"]
[TimeControl "300"]
[EndTime "5:43:15 PDT"]
[Termination "chessfiction won by resignation"]

1. e4 {[%clk 0:04:59.6]} 1... d5 {[%clk 0:04:58.6]} 2. d4 {[%clk 0:04:59.5]}
2... dxe4 {[%clk 0:04:57.4]} 3. f3 {[%clk 0:04:59.4]} 3... exf3 {[%clk
0:04:55.7]} 4. Nxf3 {[%clk 0:04:58.6]} 4... Nf6 {[%clk 0:04:54.5]} 5. Bc4 {[%clk
0:04:58.1]} 5... Bg4 {[%clk 0:04:53.2]} 6. Ne5 {[%clk 0:04:57.2]} 6... Be6
{[%clk 0:04:40.1]} 7. Bxe6 {[%clk 0:04:56]} 7... fxe6 {[%clk 0:04:38.9]} 8. O-O
{[%clk 0:04:55.9]} 8... Nc6 {[%clk 0:04:35.2]} 9. Nxc6 {[%clk 0:04:48.3]} 9...
bxc6 {[%clk 0:04:34.2]} 10. Nc3 {[%clk 0:04:46.4]} 10... g6 {[%clk 0:04:29.1]}
11. Qe2 {[%clk 0:04:43.9]} 11... Qxd4+ {[%clk 0:04:23.8]} 12. Be3 {[%clk
0:04:39.8]} 12... Qd7 {[%clk 0:04:21.5]} 13. Rad1 {[%clk 0:04:37.9]} 13... Nd5
{[%clk 0:04:18.6]} 14. Bd4 {[%clk 0:04:36.2]} 14... Rg8 {[%clk 0:04:11.2]} 15.
Ne4 {[%clk 0:04:35]} 15... Bh6 {[%clk 0:04:03.9]} 16. Nc5 {[%clk 0:04:31.8]}
16... Qd6 {[%clk 0:03:38.1]} 17. Nxe6 {[%clk 0:04:28.8]} 17... Nf4 {[%clk
0:03:29.4]} 18. Nxf4 {[%clk 0:04:15]} 18... Bxf4 {[%clk 0:03:26.5]} 19. g3
{[%clk 0:04:11.7]} 19... Bh6 {[%clk 0:03:23.8]} 20. Qc4 {[%clk 0:03:48.3]} 20...
Qd5 {[%clk 0:03:15.3]} 21. Qe2 {[%clk 0:03:38.5]} 21... c5 {[%clk 0:02:39.4]}
22. Bf6 {[%clk 0:03:09.5]} 22... Qf7 {[%clk 0:02:16.5]} 23. Bh4 {[%clk
0:03:07.4]} 23... Qg7 {[%clk 0:01:52.9]} 24. Qb5+ {[%clk 0:03:04.5]} 1-0

[Event "Live Chess"]
[Site "Chess.com"]
[Date "2023.05.21"]
[Round "-"]
[White "LL220284LL"]
[Black "wadsy27"]
[Result "1/2-1/2"]
[WhiteElo "2276"]
[BlackElo "2551"]
[TimeControl "300"]
[EndTime "5:43:31 PDT"]
[Termination "Game drawn by agreement"]

1. Nf3 {[%clk 0:04:58.8]} 1... d5 {[%clk 0:04:58.6]} 2. d4 {[%clk 0:04:57.6]}
2... Nf6 {[%clk 0:04:57]} 3. c3 {[%clk 0:04:57.1]} 3... c6 {[%clk 0:04:56.5]} 4.
Bf4 {[%clk 0:04:55.1]} 4... Nh5 {[%clk 0:04:55.7]} 5. Be3 {[%clk 0:04:53.9]}
5... Qb6 {[%clk 0:04:53.7]} 6. Qb3 {[%clk 0:04:52.6]} 6... Bf5 {[%clk
0:04:43.4]} 7. Nbd2 {[%clk 0:04:50.7]} 7... Nd7 {[%clk 0:04:36.4]} 8. g3 {[%clk
0:04:47.5]} 8... e6 {[%clk 0:04:34]} 9. Bg2 {[%clk 0:04:46.1]} 9... Nhf6 {[%clk
0:04:30.1]} 10. O-O {[%clk 0:04:43.9]} 10... Bd6 {[%clk 0:04:28.8]} 11. a4
{[%clk 0:04:34.4]} 11... Qxb3 {[%clk 0:04:21]} 12. Nxb3 {[%clk 0:04:33.3]} 12...
h6 {[%clk 0:04:15.2]} 13. a5 {[%clk 0:04:31]} 13... O-O {[%clk 0:04:09.9]} 14.
Rfc1 {[%clk 0:04:27.2]} 14... b5 {[%clk 0:04:00.9]} 15. axb6 {[%clk 0:04:24.3]}
15... axb6 {[%clk 0:03:59.8]} 16. h3 {[%clk 0:04:19.5]} 16... Rfb8 {[%clk
0:03:47.4]} 17. Nfd2 {[%clk 0:04:16.6]} 17... Ne4 {[%clk 0:03:32.4]} 18. Nxe4
{[%clk 0:04:14]} 18... Bxe4 {[%clk 0:03:31.6]} 19. Bxe4 {[%clk 0:04:06]} 19...
dxe4 {[%clk 0:03:31.5]} 20. Nd2 {[%clk 0:04:05.2]} 20... f5 {[%clk 0:03:28.4]}
21. Nc4 {[%clk 0:04:02.7]} 21... Bc7 {[%clk 0:03:27.2]} 22. Bf4 {[%clk
0:03:56.5]} 22... Bxf4 {[%clk 0:03:23.8]} 23. gxf4 {[%clk 0:03:56.4]} 23... b5
{[%clk 0:03:12.7]} 24. Ne5 {[%clk 0:03:54.8]} 24... Nxe5 {[%clk 0:03:11.5]} 25.
fxe5 {[%clk 0:03:54.7]} 25... Kf7 {[%clk 0:03:06.8]} 26. f3 {[%clk 0:03:51.3]}
26... exf3 {[%clk 0:03:03.4]} 27. exf3 {[%clk 0:03:51.2]} 27... g5 {[%clk
0:02:59.3]} 28. Kf2 {[%clk 0:03:50.2]} 28... Kg6 {[%clk 0:02:55.2]} 29. Kg3
{[%clk 0:03:47]} 29... f4+ {[%clk 0:02:53.9]} 30. Kf2 {[%clk 0:03:45.9]} 30...
Kf5 {[%clk 0:02:53.2]} 31. Ke2 {[%clk 0:03:42.6]} 31... h5 {[%clk 0:02:51.5]}
32. Kd3 {[%clk 0:03:34.5]} 32... Rxa1 {[%clk 0:02:48.5]} 33. Rxa1 {[%clk
0:03:33.3]} 33... g4 {[%clk 0:02:47.8]} 34. hxg4+ {[%clk 0:03:32.4]} 34... hxg4
{[%clk 0:02:46.9]} 35. fxg4+ {[%clk 0:03:32]} 35... Kxg4 {[%clk 0:02:45.6]} 36.
Ke4 {[%clk 0:03:31.6]} 36... Rf8 {[%clk 0:02:44.3]} 37. Rg1+ {[%clk 0:03:29.9]}
37... Kh5 {[%clk 0:02:40.2]} 38. Rf1 {[%clk 0:03:20.9]} 38... Kg4 {[%clk
0:02:33.8]} 39. Rg1+ {[%clk 0:03:19.7]} 39... Kh5 {[%clk 0:02:33.2]} 40. Kf3
{[%clk 0:03:10.5]} 40... b4 {[%clk 0:02:17.8]} 41. Rg4 {[%clk 0:03:05.8]} 41...
Ra8 {[%clk 0:02:02.3]} 42. Kxf4 {[%clk 0:02:55.2]} 42... Ra2 {[%clk 0:01:59.9]}
43. cxb4 {[%clk 0:02:22.2]} 43... Rxb2 {[%clk 0:01:58.7]} 44. Rg8 {[%clk
0:02:18.1]} 44... Rxb4 {[%clk 0:01:54.1]} 45. Ke4 {[%clk 0:02:17.3]} 45... c5
{[%clk 0:01:51.8]} 46. Rd8 {[%clk 0:02:13.8]} 46... Kg6 {[%clk 0:01:43.2]} 47.
Kd3 {[%clk 0:02:11.3]} 47... cxd4 {[%clk 0:01:35.6]} 48. Rxd4 {[%clk 0:02:11.2]}
48... Rxd4+ {[%clk 0:01:27.6]} 49. Kxd4 {[%clk 0:02:11.1]} 49... Kf5 {[%clk
0:01:27.1]} 50. Kd3 {[%clk 0:02:10]} 1/2-1/2

[Event "Live Chess"]
[Site "Chess.com"]
[Date "2023.05.21"]
[Round "-"]
[White "LiamBellwood"]
[Black "Long1968"]
[Result "1-0"]
[WhiteElo "1923"]
[BlackElo "969"]
[TimeControl "300"]
[EndTime "5:43:37 PDT"]
[Termination "LiamBellwood won on time"]

1. d4 {[%clk 0:04:59.1]} 1... e6 {[%clk 0:04:57.7]} 2. Nc3 {[%clk 0:04:59]} 2...
Nf6 {[%clk 0:04:54.3]} 3. Bf4 {[%clk 0:04:58.4]} 3... Nc6 {[%clk 0:04:48.4]} 4.
Nf3 {[%clk 0:04:56.6]} 4... Bb4 {[%clk 0:04:39.8]} 5. Qd3 {[%clk 0:04:54]} 5...
Nd5 {[%clk 0:04:33.1]} 6. Bd2 {[%clk 0:04:51.3]} 6... Nxc3 {[%clk 0:04:15.9]} 7.
bxc3 {[%clk 0:04:51.2]} 7... Be7 {[%clk 0:03:56.4]} 8. e4 {[%clk 0:04:50.4]}
8... d5 {[%clk 0:03:44.7]} 9. e5 {[%clk 0:04:47.7]} 9... f6 {[%clk 0:03:38.9]}
10. Bf4 {[%clk 0:04:41.8]} 10... fxe5 {[%clk 0:03:33.2]} 11. Nxe5 {[%clk
0:04:39.6]} 11... Nxe5 {[%clk 0:03:25.1]} 12. Bxe5 {[%clk 0:04:39.5]} 12... Bf6
{[%clk 0:03:22.3]} 13. f4 {[%clk 0:04:37.3]} 13... O-O {[%clk 0:03:17]} 14. Be2
{[%clk 0:04:33.7]} 14... b6 {[%clk 0:02:45.5]} 15. O-O {[%clk 0:04:32.4]} 15...
a5 {[%clk 0:02:37.5]} 16. Bg4 {[%clk 0:04:29.6]} 16... Qe7 {[%clk 0:02:24.5]}
17. c4 {[%clk 0:04:17.3]} 17... Ba6 {[%clk 0:02:15.4]} 18. Bxf6 {[%clk 0:04:12]}
18... Qxf6 {[%clk 0:02:07.8]} 19. Qe3 {[%clk 0:04:07.3]} 19... Rae8 {[%clk
0:01:54.6]} 20. Rfe1 {[%clk 0:03:53.6]} 20... Kf7 {[%clk 0:01:39]} 21. cxd5
{[%clk 0:03:45.6]} 21... Bc8 {[%clk 0:00:57]} 22. dxe6+ {[%clk 0:03:44]} 22...
Bxe6 {[%clk 0:00:51.9]} 23. Bxe6+ {[%clk 0:03:42.4]} 23... Rxe6 {[%clk
0:00:48.2]} 24. Qb3 {[%clk 0:03:41.9]} 24... Re8 {[%clk 0:00:35.4]} 25. f5
{[%clk 0:03:41.3]} 25... Qxf5 {[%clk 0:00:30.8]} 26. Rf1 {[%clk 0:03:40.2]} 1-0

[Event "Live Chess"]
[Site "Chess.com"]
[Date "2023.05.21"]
[Round "-"]
[White "JoshMcK"]
[Black "CheckThis4"]
[Result "0-1"]
[WhiteElo "1572"]
[BlackElo "2515"]
[TimeControl "300"]
[EndTime "5:43:41 PDT"]
[Termination "CheckThis4 won by resignation"]

1. e4 {[%clk 0:04:58.3]} 1... c5 {[%clk 0:04:53.9]} 2. c3 {[%clk 0:04:56.5]}
2... Nf6 {[%clk 0:04:48.9]} 3. e5 {[%clk 0:04:55]} 3... Nd5 {[%clk 0:04:48]} 4.
Nf3 {[%clk 0:04:54.6]} 4... d6 {[%clk 0:04:46.3]} 5. exd6 {[%clk 0:04:53]} 5...
e6 {[%clk 0:04:45.1]} 6. g3 {[%clk 0:04:50.6]} 6... Bxd6 {[%clk 0:04:43.6]} 7.
Bg2 {[%clk 0:04:49.8]} 7... Nc6 {[%clk 0:04:42.6]} 8. O-O {[%clk 0:04:49]} 8...
O-O {[%clk 0:04:41.1]} 9. d4 {[%clk 0:04:48.6]} 9... cxd4 {[%clk 0:04:39.8]} 10.
Nxd4 {[%clk 0:04:48.1]} 10... Nxd4 {[%clk 0:04:38.4]} 11. Qxd4 {[%clk
0:04:46.4]} 11... Qe7 {[%clk 0:04:35.6]} 12. Nd2 {[%clk 0:04:42]} 12... Bc5
{[%clk 0:04:30.4]} 13. Qd3 {[%clk 0:04:37.6]} 13... Bd7 {[%clk 0:04:26.4]} 14.
Bxd5 {[%clk 0:04:34.2]} 14... exd5 {[%clk 0:04:24.8]} 15. Qxd5 {[%clk
0:04:33.9]} 15... Bc6 {[%clk 0:04:23.1]} 16. Qc4 {[%clk 0:04:27.7]} 16... b5
{[%clk 0:04:09.5]} 17. Qd3 {[%clk 0:04:14.6]} 17... Rad8 {[%clk 0:04:07.6]} 18.
Qc2 {[%clk 0:04:13.5]} 18... Rfe8 {[%clk 0:04:01.2]} 19. Nb3 {[%clk 0:04:09.3]}
19... Bb6 {[%clk 0:03:54.2]} 20. Bf4 {[%clk 0:03:59.2]} 20... Be4 {[%clk
0:03:51.2]} 21. Qc1 {[%clk 0:03:49.5]} 21... Ba8 {[%clk 0:03:49.3]} 22. Re1
{[%clk 0:03:43.2]} 22... Qb7 {[%clk 0:03:47.1]} 23. Rxe8+ {[%clk 0:03:22.4]}
23... Rxe8 {[%clk 0:03:47]} 0-1

[Event "Live Chess"]
[Site "Chess.com"]
[Date "2023.05.21"]
[Round "-"]
[White "martynstanley"]
[Black "Alfiedog12"]
[Result "1-0"]
[WhiteElo "1025"]
[BlackElo "913"]
[TimeControl "300"]
[EndTime "5:43:43 PDT"]
[Termination "martynstanley won on time"]

1. d4 {[%clk 0:04:57.5]} 1... d5 {[%clk 0:04:58.5]} 2. e3 {[%clk 0:04:57.1]}
2... c6 {[%clk 0:04:57.7]} 3. Bd3 {[%clk 0:04:54.7]} 3... Nf6 {[%clk 0:04:54.1]}
4. f4 {[%clk 0:04:53.7]} 4... Bg4 {[%clk 0:04:47.9]} 5. Nf3 {[%clk 0:04:52.5]}
5... e6 {[%clk 0:04:42.1]} 6. O-O {[%clk 0:04:51]} 6... Ne4 {[%clk 0:04:39.2]}
7. Qe2 {[%clk 0:04:48.9]} 7... Nd7 {[%clk 0:04:30.1]} 8. Nbd2 {[%clk 0:04:47.8]}
8... Bxf3 {[%clk 0:04:25.3]} 9. Rxf3 {[%clk 0:04:45.8]} 9... Ndf6 {[%clk
0:04:14]} 10. c3 {[%clk 0:04:43.5]} 10... Qc7 {[%clk 0:04:12.6]} 11. b3 {[%clk
0:04:37.9]} 11... g5 {[%clk 0:04:09]} 12. c4 {[%clk 0:04:35.7]} 12... g4 {[%clk
0:04:03.1]} 13. Rf1 {[%clk 0:04:31.5]} 13... h5 {[%clk 0:03:53.6]} 14. f5 {[%clk
0:04:28.6]} 14... e5 {[%clk 0:03:48.5]} 15. dxe5 {[%clk 0:04:21.8]} 15... Qxe5
{[%clk 0:03:46.6]} 16. Nxe4 {[%clk 0:04:18.8]} 16... dxe4 {[%clk 0:03:43.9]} 17.
Bc2 {[%clk 0:04:15.5]} 17... h4 {[%clk 0:03:31.2]} 18. Rb1 {[%clk 0:04:14]}
18... h3 {[%clk 0:03:11.3]} 19. g3 {[%clk 0:04:12.4]} 19... Nh5 {[%clk
0:03:06.9]} 20. Bb2 {[%clk 0:04:09.2]} 20... Nxg3 {[%clk 0:03:02.9]} 21. hxg3
{[%clk 0:04:08.3]} 21... Qxg3+ {[%clk 0:03:01.5]} 22. Kh1 {[%clk 0:04:04.1]}
22... h2 {[%clk 0:02:52.8]} 23. Bxh8 {[%clk 0:04:01.3]} 23... Bc5 {[%clk
0:02:40.8]} 24. Qg2 {[%clk 0:03:51.5]} 24... Qxe3 {[%clk 0:02:34.1]} 25. Be5
{[%clk 0:03:46.3]} 25... Ke7 {[%clk 0:02:19.9]} 26. Bxh2 {[%clk 0:03:45]} 26...
Rh8 {[%clk 0:02:15.9]} 27. Bxe4 {[%clk 0:03:38.2]} 27... g3 {[%clk 0:02:11.7]}
28. f6+ {[%clk 0:03:28.7]} 28... Ke6 {[%clk 0:02:05.9]} 29. Bd5+ {[%clk
0:03:24.7]} 29... Kd6 {[%clk 0:01:59.9]} 30. Rbe1 {[%clk 0:03:11.9]} 30... Qg5
{[%clk 0:01:37.6]} 31. Re6+ {[%clk 0:02:55]} 31... fxe6 {[%clk 0:01:31.7]} 32.
f7 {[%clk 0:02:52.7]} 32... Rxh2+ {[%clk 0:01:28.9]} 33. Qxh2 {[%clk 0:02:50.5]}
33... Qe3 {[%clk 0:00:36]} 34. f8=Q+ {[%clk 0:02:46.9]} 34... Ke5 {[%clk
0:00:35.1]} 35. Qh5+ {[%clk 0:02:38.1]} 35... Kd4 {[%clk 0:00:31.2]} 36. Qg7+
{[%clk 0:02:33.8]} 36... Kd3 {[%clk 0:00:25.8]} 37. Rd1+ {[%clk 0:02:29.6]}
37... Kc2 {[%clk 0:00:21.5]} 38. Qgg6+ {[%clk 0:02:25.4]} 38... Kb2 {[%clk
0:00:19]} 39. Qb1+ {[%clk 0:02:18.3]} 39... Ka3 {[%clk 0:00:17.2]} 40. Re1
{[%clk 0:02:14.3]} 40... g2+ {[%clk 0:00:12.6]} 41. Kh2 {[%clk 0:02:11.9]} 41...
g1=Q+ {[%clk 0:00:08.3]} 42. Rxg1 {[%clk 0:02:10.7]} 42... Qf4+ {[%clk
0:00:04.6]} 43. Rg3 {[%clk 0:02:08.4]} 1-0

[Event "Live Chess"]
[Site "Chess.com"]
[Date "2023.05.21"]
[Round "-"]
[White "MJMykh"]
[Black "LodeshChess"]
[Result "0-1"]
[WhiteElo "1140"]
[BlackElo "1191"]
[TimeControl "300"]
[EndTime "5:43:45 PDT"]
[Termination "LodeshChess won by checkmate"]

1. e4 {[%clk 0:04:57.1]} 1... c6 {[%clk 0:04:59]} 2. d4 {[%clk 0:04:55.1]} 2...
d5 {[%clk 0:04:58.6]} 3. e5 {[%clk 0:04:54.2]} 3... Bf5 {[%clk 0:04:57]} 4. Nc3
{[%clk 0:04:53.1]} 4... e6 {[%clk 0:04:55.8]} 5. Nf3 {[%clk 0:04:52.4]} 5... c5
{[%clk 0:04:54.4]} 6. dxc5 {[%clk 0:04:50.4]} 6... Bxc5 {[%clk 0:04:52.6]} 7. a3
{[%clk 0:04:50]} 7... Qb6 {[%clk 0:04:49.9]} 8. Bb5+ {[%clk 0:04:47.5]} 8... Nc6
{[%clk 0:04:48.1]} 9. Bxc6+ {[%clk 0:04:46.7]} 9... bxc6 {[%clk 0:04:47.1]} 10.
O-O {[%clk 0:04:45.5]} 10... Ne7 {[%clk 0:04:43.7]} 11. Na4 {[%clk 0:04:44.2]}
11... Qb5 {[%clk 0:04:35.5]} 12. Nxc5 {[%clk 0:04:42.3]} 12... Qxc5 {[%clk
0:04:34.7]} 13. c3 {[%clk 0:04:41.2]} 13... O-O {[%clk 0:04:34.1]} 14. Bg5
{[%clk 0:04:40.6]} 14... h6 {[%clk 0:04:29.7]} 15. Bxe7 {[%clk 0:04:39.8]} 15...
Qxe7 {[%clk 0:04:29.1]} 16. Qa4 {[%clk 0:04:35.1]} 16... Qb7 {[%clk 0:04:20.2]}
17. b4 {[%clk 0:04:31.5]} 17... Qb5 {[%clk 0:04:10.9]} 18. Qxb5 {[%clk
0:04:30.1]} 18... cxb5 {[%clk 0:04:09.9]} 19. Nd4 {[%clk 0:04:29.8]} 19... a6
{[%clk 0:04:08.8]} 20. Nxf5 {[%clk 0:04:27.8]} 20... exf5 {[%clk 0:04:08.5]} 21.
a4 {[%clk 0:04:26.8]} 21... Rfe8 {[%clk 0:04:05.1]} 22. axb5 {[%clk 0:04:25.7]}
22... axb5 {[%clk 0:04:04.2]} 23. Rxa8 {[%clk 0:04:24.7]} 23... Rxa8 {[%clk
0:04:03.9]} 24. Re1 {[%clk 0:04:23.7]} 24... Kf8 {[%clk 0:04:01]} 25. e6 {[%clk
0:04:20.2]} 25... fxe6 {[%clk 0:03:50.1]} 26. Rxe6 {[%clk 0:04:18.4]} 26... Ra1+
{[%clk 0:03:49.7]} 27. Re1 {[%clk 0:04:08.3]} 27... Rxe1# {[%clk 0:03:48.5]} 0-1

[Event "Live Chess"]
[Site "Chess.com"]
[Date "2023.05.21"]
[Round "-"]
[White "ViktorTheCoolBoy"]
[Black "Leonid_Starozhilov"]
[Result "0-1"]
[WhiteElo "2472"]
[BlackElo "2638"]
[TimeControl "300"]
[EndTime "5:43:54 PDT"]
[Termination "Leonid_Starozhilov won by resignation"]

1. e4 {[%clk 0:04:58.6]} 1... Nc6 {[%clk 0:04:58]} 2. Nf3 {[%clk 0:04:56.6]}
2... d6 {[%clk 0:04:56.5]} 3. d4 {[%clk 0:04:48.6]} 3... Nf6 {[%clk 0:04:54.8]}
4. Nc3 {[%clk 0:04:46.3]} 4... g6 {[%clk 0:04:53.6]} 5. h3 {[%clk 0:04:42.7]}
5... Bg7 {[%clk 0:04:51.3]} 6. Be3 {[%clk 0:04:42.3]} 6... O-O {[%clk
0:04:48.1]} 7. Qd2 {[%clk 0:04:38.8]} 7... e5 {[%clk 0:04:47.4]} 8. O-O-O {[%clk
0:04:37.4]} 8... exd4 {[%clk 0:04:35.2]} 9. Nxd4 {[%clk 0:04:35.2]} 9... Re8
{[%clk 0:04:34.9]} 10. f3 {[%clk 0:04:31.3]} 10... Bd7 {[%clk 0:04:31.4]} 11. g4
{[%clk 0:04:28.5]} 11... a6 {[%clk 0:04:28.7]} 12. h4 {[%clk 0:04:27.7]} 12...
b5 {[%clk 0:04:23.9]} 13. h5 {[%clk 0:04:24.5]} 13... b4 {[%clk 0:04:20.1]} 14.
Nce2 {[%clk 0:04:18.6]} 14... d5 {[%clk 0:03:56.8]} 15. hxg6 {[%clk 0:04:08.4]}
15... hxg6 {[%clk 0:03:51.5]} 16. Bh6 {[%clk 0:04:02.7]} 16... Bh8 {[%clk
0:03:45.5]} 17. exd5 {[%clk 0:03:18.1]} 17... Nxd5 {[%clk 0:03:37.9]} 18. Nb3
{[%clk 0:03:03.6]} 18... Qf6 {[%clk 0:03:19.3]} 19. c4 {[%clk 0:02:41.1]} 19...
bxc3 {[%clk 0:03:10.9]} 20. bxc3 {[%clk 0:02:40.5]} 20... Rxe2 {[%clk
0:02:55.7]} 21. Bxe2 {[%clk 0:02:37.8]} 21... Nxc3 {[%clk 0:02:53.3]} 22. Bc4
{[%clk 0:02:33.3]} 22... Nxd1 {[%clk 0:02:26]} 23. Rxd1 {[%clk 0:02:24.6]} 23...
Be6 {[%clk 0:02:16.2]} 24. Bxe6 {[%clk 0:02:22.6]} 24... Qxe6 {[%clk 0:02:14.1]}
25. Qd5 {[%clk 0:02:07.6]} 25... Qxd5 {[%clk 0:02:03.1]} 26. Rxd5 {[%clk
0:02:06.5]} 26... Rd8 {[%clk 0:01:58.9]} 27. Rc5 {[%clk 0:02:04.7]} 27... Nb4
{[%clk 0:01:55.4]} 28. Rxc7 {[%clk 0:02:02.3]} 28... Nxa2+ {[%clk 0:01:54.6]}
29. Kb1 {[%clk 0:02:00.1]} 29... Nc3+ {[%clk 0:01:52.8]} 30. Kc2 {[%clk
0:01:59]} 30... Nd5 {[%clk 0:01:50.4]} 31. Rb7 {[%clk 0:01:56.9]} 31... Rc8+
{[%clk 0:01:44.6]} 32. Kd2 {[%clk 0:01:52.1]} 32... a5 {[%clk 0:01:41]} 33. Rb5
{[%clk 0:01:47.3]} 33... a4 {[%clk 0:01:38.2]} 34. Nc5 {[%clk 0:01:20.5]} 34...
a3 {[%clk 0:01:24.5]} 35. Ra5 {[%clk 0:01:19.4]} 35... Bc3+ {[%clk 0:01:22.8]}
36. Kd3 {[%clk 0:01:18.1]} 36... Bxa5 {[%clk 0:01:22.7]} 37. Kc4 {[%clk
0:01:17]} 37... a2 {[%clk 0:01:21.8]} 0-1

[Event "Live Chess"]
[Site "Chess.com"]
[Date "2023.05.21"]
[Round "-"]
[White "MaximKhimchenko"]
[Black "yarek"]
[Result "0-1"]
[WhiteElo "1404"]
[BlackElo "1869"]
[TimeControl "300"]
[EndTime "5:43:54 PDT"]
[Termination "yarek won by resignation"]

1. e4 {[%clk 0:04:58.1]} 1... g6 {[%clk 0:04:55]} 2. Nf3 {[%clk 0:04:58]} 2...
Bg7 {[%clk 0:04:53.5]} 3. d4 {[%clk 0:04:56.7]} 3... c6 {[%clk 0:04:52]} 4. d5
{[%clk 0:04:54.6]} 4... d6 {[%clk 0:04:29.1]} 5. Bc4 {[%clk 0:04:50.8]} 5... Nf6
{[%clk 0:04:25.2]} 6. Bg5 {[%clk 0:04:49]} 6... Nxe4 {[%clk 0:04:17.8]} 7. Bc1
{[%clk 0:04:44.7]} 7... Bg4 {[%clk 0:04:08.9]} 8. O-O {[%clk 0:04:41.4]} 8...
O-O {[%clk 0:03:56.5]} 9. Nc3 {[%clk 0:03:59.8]} 9... Nxc3 {[%clk 0:03:52]} 10.
bxc3 {[%clk 0:03:59.7]} 10... Bxc3 {[%clk 0:03:49.5]} 11. Rb1 {[%clk 0:03:58.2]}
11... Qc7 {[%clk 0:03:18.6]} 12. Qd3 {[%clk 0:03:47.6]} 12... Bg7 {[%clk
0:03:13.3]} 13. Bb2 {[%clk 0:03:20.9]} 13... Bf5 {[%clk 0:03:04]} 14. Qb3 {[%clk
0:03:12.4]} 14... b6 {[%clk 0:02:47.6]} 15. Bxg7 {[%clk 0:02:53.5]} 15... Kxg7
{[%clk 0:02:45.2]} 16. Qc3+ {[%clk 0:02:51.8]} 16... Kg8 {[%clk 0:02:42.8]} 17.
Qb3 {[%clk 0:02:34.1]} 17... Nd7 {[%clk 0:02:32]} 18. Rfe1 {[%clk 0:02:30.6]}
18... Nc5 {[%clk 0:02:27.3]} 19. Qb2 {[%clk 0:02:23.7]} 19... b5 {[%clk
0:02:12.1]} 20. Bb3 {[%clk 0:02:11.9]} 20... Nxb3 {[%clk 0:02:02.8]} 21. Qxb3
{[%clk 0:02:11.8]} 21... a6 {[%clk 0:01:55.8]} 22. dxc6 {[%clk 0:02:04.7]} 22...
Qxc6 {[%clk 0:01:50.6]} 23. Rxe7 {[%clk 0:02:02.8]} 23... Bxc2 {[%clk
0:01:27.8]} 24. Qb2 {[%clk 0:01:50.3]} 24... Bxb1 {[%clk 0:01:25]} 25. Qxb1
{[%clk 0:01:45.5]} 25... Rac8 {[%clk 0:01:20.3]} 26. Ng5 {[%clk 0:01:32.3]}
26... Qc1+ {[%clk 0:01:17.4]} 27. Re1 {[%clk 0:01:31.8]} 27... Qxg5 {[%clk
0:01:12.6]} 0-1